bitfinex/quotes_ETHUSD_20250824
["timestamp","ask_amount","ask_price","bid_price","bid_amount"]
[1756045252093,2.002,4789.3,4789.2,10.3170314]
[1756045252302,2.1234,4789.3,4789.2,5.229]
[1756045252465,2.1234,4789.3,4789.2,1.605]
[1756045252676,2.1234,4789.3,4789.2,5.229]
[1756045252872,2.5762,4789.3,4789.2,5.229]
[1756045253075,2.83382,4789.3,4789.2,1.605]
[1756045253271,2.83382,4789.3,4789.2,5.23]
[1756045254657,2.83382,4789.3,4789.2,1.605]
[1756045255014,2.83382,4789.3,4789.2,5.229]
[1756045255776,2.83382,4789.3,4789.2,5.228]
[1756045256889,2.83382,4789.3,4789.2,1.605]
[1756045257094,2.83382,4789.3,4789.2,5.227]
[1756045258484,3.461566,4789.3,4789.2,5.227]
[1756045259507,2.83382,4789.3,4789.2,5.227]
[1756045260178,2.5763,4789.3,4789.2,5.227]
[1756045260383,2.5763,4789.3,4789.2,5.225]
[1756045260996,2.1234,4789.3,4789.2,5.225]
[1756045261184,2.002,4789.3,4789.2,5.3298]
[1756045261705,2.1234,4789.3,4789.2,5.3308]
[1756045261889,2.002,4789.3,4789.2,5.3308]
[1756045262078,2.002,4789.3,4789.2,1.7098]
[1756045262275,2.002,4789.3,4789.2,5.3308]
[1756045263037,2.002,4789.3,4789.2,6.7672]
[1756045263190,2.002,4789.3,4789.2,7.44392]
[1756045263590,2.002,4789.3,4789.2,6.97322]
[1756045263831,2.002,4789.3,4789.2,2.3698]
[1756045264035,2.002,4789.3,4789.2,5.9898]
[1756045266019,2.002,4789.3,4789.2,6.2975]
[1756045266997,2.002,4789.3,4789.2,6.7662]
[1756045270693,2.002,4789.3,4789.2,6.2975]
[1756045271121,2.002,4789.3,4789.2,6.2895]
[1756045271796,2.002,4789.3,4789.2,5.9818]
[1756045271996,2.002,4789.3,4789.2,2.3698]
[1756045272193,2.002,4789.3,4789.2,5.9818]
[1756045272398,2.002,4789.3,4789.2,6.62695]
[1756045272700,2.2978,4789.3,4789.2,5.3218]
[1756045272898,2.578,4789.3,4789.2,1.7098]
[1756045273099,2.578,4789.3,4789.2,5.217]
[1756045273530,2.2978,4789.3,4789.2,5.217]
[1756045273803,2.6007489,4789.3,4789.2,5.217]
[1756045274117,2.002,4789.3,4789.2,5.217]
[1756045274320,2.002,4789.3,4789.2,5.6295]
[1756045275043,2.2978,4789.3,4789.2,5.3218]
[1756045275544,2.578,4789.3,4789.2,5.3218]
[1756045275912,2.578,4789.3,4789.2,5.217]
[1756045276255,2.8462,4789.3,4789.2,5.217]
[1756045276916,2.9502,4789.3,4789.2,5.217]
[1756045277246,2.9502,4789.3,4789.2,1.605]
[1756045277557,2.9502,4789.3,4789.2,5.217]
[1756045277749,2.9502,4789.3,4789.2,3.612]
[1756045277951,2.9502,4789.3,4788.8,0.001]
[1756045278133,0.57522,4789.2,4788.9,3.612]
[1756045278339,0.2956,4789.0,4788.9,3.612]
[1756045278653,0.6808,4789.0,4788.9,3.612]
[1756045278867,3.0,4788.9,4788.8,0.001]
[1756045279033,0.2955,4788.9,4788.8,0.001]
[1756045279361,2.717978,4788.9,4788.8,0.001]
[1756045279563,2.717978,4788.9,4788.3,0.001]
[1756045279766,18.40451822,4788.4,4788.3,0.001]
[1756045279929,18.69981822,4788.4,4788.3,0.001]
[1756045280129,19.08531822,4788.4,4788.3,0.001]
[1756045280339,19.47685263,4788.4,4788.3,0.001]
[1756045280667,21.56523288,4788.4,4788.3,0.001]
[1756045280865,5.08844192,4788.3,4787.8,0.021]
[1756045281068,0.4006,4787.9,4787.8,0.021]
[1756045281251,0.69562,4787.9,4787.8,0.021]
[1756045281475,0.97582,4787.9,4787.8,0.021]
[1756045283458,1.603807,4787.9,4787.8,0.021]
[1756045284200,2.08875006,4787.6,4787.2,0.001]
[1756045284398,15.81541822,4787.3,4787.2,0.001]
[1756045284693,17.69696004,4787.3,4787.2,0.001]
[1756045284892,20.96696004,4787.3,4787.2,0.001]
[1756045285255,23.05582014,4787.3,4787.2,0.001]
[1756045285487,5.29244182,4787.3,4787.2,0.001]
[1756045285788,3.4109,4787.3,4787.2,0.001]
[1756045286359,0.32685215,4787.7,4787.2,0.3171]
[1756045286564,0.1048,4787.6,4787.3,3.613]
[1756045286764,0.32685215,4787.7,4787.5,0.3161]
[1756045287064,0.1048,4788.1,4787.6,0.4464]
[1756045287569,0.627874,4788.2,4787.7,0.4464]
[1756045287798,0.627874,4788.2,4788.0,0.3161]
[1756045287983,0.1048,4788.3,4787.9,3.613]
[1756045288182,1.95287266,4788.2,4787.9,3.613]
[1756045288483,0.1048,4788.3,4788.1,0.3161]
[1756045288998,2.002,4789.3,4788.2,0.5512]
[1756045289165,0.02,4788.8,4788.2,0.5512]
[1756045289361,0.02,4788.8,4788.7,0.3161]
[1756045289561,0.02,4788.8,4788.7,4.0339]
[1756045289761,0.02,4788.8,4788.7,4.4803]
[1756045290009,0.02,4788.8,4787.9,1.606]
[1756045290010,0.0228,4788.8,4787.9,1.606]
[1756045290158,0.0228,4788.8,4788.0,3.613]
[1756045290159,15.40451822,4788.6,4788.0,3.613]
[1756045290791,16.94697004,4788.6,4788.0,3.613]
[1756045290997,1.54245182,4788.6,4788.1,3.614]
[1756045291172,1.54245182,4788.6,4788.2,3.614]
[1756045291897,0.02,4788.8,4788.5,0.3161]
[1756045292502,0.02,4788.8,4787.9,1.606]
[1756045292803,0.02,4788.8,4788.3,3.614]
[1756045292961,0.02,4788.8,4788.7,0.3161]
[1756045293361,0.02,4788.8,4788.7,1.4225]
[1756045293560,0.02,4788.8,4788.7,1.92615]
[1756045294719,2.002,4789.3,4789.2,2.7480314]
[1756045294863,0.002,4790.3,4789.7,2.74781343]
[1756045295068,0.002,4790.3,4789.8,3.66]
[1756045295419,0.002,4790.3,4790.2,0.3161]
[1756045295563,0.002,4790.3,4790.2,1.9221]
[1756045295962,0.002,4790.3,4790.2,5.9915]
[1756045296805,0.002,4790.3,4790.2,5.5451]
[1756045297185,0.002,4790.3,4790.2,5.9915]
[1756045298396,0.002,4790.3,4790.2,5.5451]
[1756045299198,0.002,4790.3,4790.2,5.229]
[1756045299978,0.002,4790.3,4790.2,5.333]
[1756045300593,0.3081,4790.3,4790.2,5.333]
[1756045301101,0.3081,4790.3,4790.2,5.229]
[1756045301304,0.764,4790.3,4790.2,5.229]
[1756045301710,0.764,4790.3,4789.7,0.104]
[1756045301866,0.764,4790.3,4789.5,1.606]
[1756045302206,0.104,4790.1,4789.6,3.619]
[1756045302503,0.3061,4789.7,4789.6,3.619]
[1756045302668,0.104,4790.1,4789.6,3.619]
[1756045302669,0.4559,4790.1,4789.6,3.619]
[1756045302869,0.3061,4789.7,4789.6,3.619]
[1756045303070,0.002,4790.3,4789.6,3.9351]
[1756045303269,0.002,4790.3,4789.6,3.723]
[1756045303701,0.002,4790.3,4790.2,0.4201]
[1756045303922,0.002,4790.3,4790.2,4.0461]
[1756045304070,0.002,4790.3,4790.2,4.4925]
[1756045304600,0.002,4790.3,4790.2,3.73]
[1756045305415,0.002,4790.3,4790.2,4.0461]
[1756045305588,0.002,4790.3,4790.2,4.4925]
[1756045305778,0.002,4790.3,4790.2,4.0461]
[1756045305999,0.002,4790.3,4790.2,3.73]
[1756045306599,0.002,4790.3,4790.2,4.0461]
[1756045306909,0.002,4790.3,4790.2,4.4925]
[1756045307808,0.002,4790.3,4790.2,4.83775]
[1756045307979,0.002,4790.3,4790.2,4.94175]
[1756045308180,0.002,4790.3,4790.2,5.60175]
[1756045311274,0.002,4790.3,4790.2,4.0431]
[1756045312998,0.002,4790.3,4790.2,0.104]
[1756045313188,0.002,4790.3,4790.2,3.726]
[1756045314223,0.31,4790.3,4790.2,3.726]
[1756045314689,0.002,4790.3,4790.2,3.726]
[1756045315093,0.31,4790.3,4790.2,3.726]
[1756045315397,0.7463,4790.3,4790.2,3.726]
[1756045315602,0.7463,4790.3,4790.2,3.722]
[1756045316628,0.7463,4790.3,4790.2,3.618]
[1756045318002,0.8940864,4790.3,4790.2,3.618]
[1756045318624,3.8940864,4790.3,4789.8,0.105]
[1756045318834,0.4363,4790.2,4789.8,3.72]
[1756045319040,0.308,4789.9,4789.8,0.001]
[1756045319356,0.412,4789.9,4789.8,0.001]
[1756045319504,0.8483,4789.9,4789.8,0.001]
[1756045320149,0.104,4790.2,4789.8,3.622]
[1756045322106,0.308,4789.9,4789.8,0.001]
[1756045322736,0.7443,4789.9,4789.8,0.001]
[1756045322936,0.308,4789.9,4789.8,0.001]
[1756045323247,0.7203,4789.9,4789.8,0.001]
[1756045325416,3.7203,4789.9,4789.8,0.001]
[1756045325619,2.01090365,4789.9,4789.8,0.001]
[1756045326641,4.0986299,4789.9,4789.8,0.001]
[1756045327364,7.65843331,4789.9,4789.8,0.001]
[1756045327768,7.0986299,4789.9,4789.8,0.001]
[1756045327931,7.0986299,4789.9,4789.8,0.021]
[1756045328134,7.84831414,4789.9,4789.8,0.021]
[1756045328566,7.66079723,4789.9,4789.8,0.021]
[1756045328769,7.66079687,4789.9,4789.8,0.021]
[1756045328970,7.0986299,4789.9,4789.8,0.021]
[1756045329385,5.01090365,4789.9,4789.8,0.021]
[1756045329676,1.70260365,4789.9,4789.8,0.021]
[1756045330536,1.39460365,4789.9,4789.8,0.021]
[1756045330840,1.39460365,4789.9,4789.8,0.3196]
[1756045330841,0.104,4789.9,4789.8,0.3196]
[1756045331248,0.731625,4790.0,4789.8,0.021]
[1756045331448,0.308,4789.9,4789.8,0.021]
[1756045331654,0.7443,4789.9,4789.8,0.021]
[1756045332049,0.104,4789.9,4789.8,0.021]
[1756045332476,0.85843326,4789.9,4789.8,0.021]
[1756045333074,0.104,4789.9,4789.8,0.021]
[1756045333434,0.44986895,4790.2,4789.8,0.7541]
[1756045333639,0.104,4790.2,4789.9,0.4345]
[1756045333964,0.104,4790.2,4789.8,0.021]
[1756045334162,0.104,4790.2,4789.8,0.4555]
[1756045334561,0.104,4790.2,4790.1,0.2986]
[1756045334762,0.002,4790.3,4790.1,0.7331]
[1756045334949,0.002,4790.3,4790.2,0.4345]
[1756045335165,0.002,4790.3,4790.2,0.7331]
[1756045335673,0.002,4790.3,4790.0,0.104]
[1756045337174,0.002,4790.3,4790.2,0.2986]
[1756045337379,0.002,4790.3,4790.2,0.4026]
[1756045337578,0.002,4790.3,4790.2,0.8371]
[1756045340150,0.002,4790.3,4790.2,1.3931]
[1756045340490,0.002,4790.3,4790.2,1.4971]
[1756045340655,0.002,4790.3,4790.2,1.867355]
[1756045341055,0.002,4790.3,4790.2,1.207355]
[1756045341257,0.002,4790.3,4790.2,4.822355]
[1756045341878,0.002,4790.3,4790.2,4.821355]
[1756045342488,0.002,4790.3,4790.2,1.207355]
[1756045342899,0.002,4790.3,4790.2,4.0156]
[1756045343258,0.002,4790.3,4790.2,4.4503]
[1756045343892,0.002,4790.3,4790.2,4.0156]
[1756045344692,0.002,4790.3,4790.2,4.4503]
[1756045345390,0.002,4790.3,4790.2,0.4026]
[1756045345562,0.002,4790.3,4790.2,0.104]
[1756045345767,0.002,4790.3,4790.2,3.717]
[1756045346471,0.002,4790.3,4790.2,4.0247]
[1756045347330,0.002,4790.3,4790.2,3.717]
[1756045348522,0.2943,4790.3,4790.2,3.717]
[1756045348805,0.002,4790.3,4790.2,3.717]
[1756045349603,0.2943,4790.3,4790.2,3.717]
[1756045350269,0.2943,4790.3,4790.2,0.104]
[1756045350472,0.7573,4790.3,4790.2,3.613]
[1756045350701,0.002,4790.3,4790.2,3.613]
[1756045350970,0.002,4790.3,4790.2,3.9207]
[1756045352208,0.002,4790.3,4790.2,4.3554]
[1756045352733,0.002,4790.3,4790.2,3.9207]
[1756045352868,0.002,4790.3,4790.2,3.613]
[1756045353294,0.2943,4790.3,4790.2,3.613]
[1756045355130,0.7573,4790.3,4790.2,3.613]
[1756045355333,0.7573,4790.3,4790.1,0.104]
[1756045355531,0.463,4790.2,4790.1,0.104]
[1756045355698,0.8593,4790.2,4790.0,3.613]
[1756045355899,0.3963,4790.2,4790.0,3.613]
[1756045356099,0.463,4790.1,4790.0,3.613]
[1756045356296,3.7553,4790.1,4789.8,1.627]
[1756045356502,0.104,4789.9,4789.8,0.021]
[1756045356703,0.3963,4789.9,4789.8,0.021]
[1756045356910,0.8593,4789.9,4789.8,0.021]
[1756045357547,0.3963,4789.9,4789.8,0.021]
[1756045357851,0.8593,4789.9,4789.8,0.021]
[1756045358139,0.97809785,4789.9,4789.8,0.021]
[1756045361310,1.42776395,4789.9,4789.8,0.021]
[1756045361512,3.0658241,4789.9,4789.8,0.021]
[1756045361729,3.5154902,4789.9,4789.8,0.021]
[1756045362332,1.42776395,4789.9,4789.8,0.021]
[1756045362532,3.5154902,4789.9,4789.8,0.021]
[1756045362739,1.42776395,4789.9,4789.8,0.021]
[1756045362934,0.97809785,4789.9,4789.8,0.021]
[1756045363244,1.42776395,4789.9,4789.8,0.021]
[1756045363436,3.97809785,4789.9,4789.8,0.021]
[1756045363637,1.42776395,4789.9,4789.8,0.021]
[1756045363934,3.5154902,4789.9,4789.8,0.021]
[1756045364140,3.84220007,4789.9,4789.8,0.021]
[1756045364334,4.75447382,4789.9,4789.8,0.021]
[1756045364535,20.15899204,4789.9,4789.8,0.021]
[1756045365821,19.69599204,4789.9,4789.8,0.021]
[1756045366150,1.17267597,4789.9,4789.8,0.021]
[1756045366462,19.59052809,4789.9,4789.8,0.021]
[1756045366667,20.04019419,4789.9,4789.8,0.021]
[1756045368272,19.57719419,4789.9,4789.8,0.021]
[1756045369374,4.17267597,4789.9,4789.8,0.021]
[1756045369571,3.43070987,4789.9,4789.8,0.021]
[1756045369879,4.06628086,4789.9,4789.8,0.021]
[1756045370081,3.73957099,4789.9,4789.8,0.021]
[1756045370576,3.44727099,4789.9,4789.8,0.021]
[1756045370779,3.104,4789.9,4789.8,0.7634]
[1756045370946,0.104,4789.9,4789.8,0.7634]
[1756045371474,0.104,4789.9,4789.8,0.3287]
[1756045373050,0.104,4789.9,4789.8,0.021]
[1756045373235,0.4014,4789.9,4789.8,0.021]
[1756045373442,0.104,4789.9,4789.8,0.021]
[1756045373744,0.104,4789.9,4789.8,0.3097]
[1756045374464,0.8507,4789.9,4789.8,0.021]
[1756045374638,1.01356032,4789.9,4789.8,0.021]
[1756045375248,0.104,4789.9,4789.8,0.021]
[1756045375477,0.104,4789.9,4789.8,0.3097]
[1756045375779,0.104,4789.9,4789.8,0.7483]
[1756045377366,0.0584,4789.9,4789.8,0.3097]
[1756045377578,0.32866258,4790.3,4789.8,0.8523]
[1756045377748,0.002,4790.3,4789.9,4.0506]
[1756045377942,0.002,4790.3,4790.2,0.2887]
[1756045378344,0.002,4790.3,4790.2,0.7273]
[1756045379182,0.002,4790.3,4790.2,0.8313]
[1756045379570,0.002,4790.3,4790.2,2.4373]
[1756045383602,0.002,4790.3,4790.2,6.0493]
[1756045383884,0.002,4790.3,4790.2,5.6107]
[1756045384291,0.002,4790.3,4790.2,6.0493]
[1756045386870,0.002,4790.3,4790.2,2.4373]
[1756045387069,0.002,4790.3,4790.2,6.0493]
[1756045394129,0.7668,4790.3,4790.2,5.32]
[1756045394334,0.316,4790.3,4790.2,5.32]
[1756045394530,0.002,4790.3,4790.2,5.32]
[1756045394699,0.316,4790.3,4790.2,1.71]
[1756045395022,0.316,4790.3,4790.2,5.32]
[1756045395324,0.002,4790.3,4790.2,5.32]
[1756045398099,0.002,4790.3,4790.2,5.6087]
[1756045400035,7.73872534,4790.3,4790.0,3.609]
[1756045400244,6.97192534,4790.1,4790.0,3.609]
[1756045400543,6.97192534,4790.2,4790.0,3.8977]
[1756045400847,6.97192534,4790.2,4790.0,3.609]
[1756045401425,0.314,4790.1,4790.0,3.609]
[1756045404021,0.314,4790.1,4789.8,0.021]
[1756045404355,0.89322265,4790.0,4789.8,0.021]
[1756045404519,0.89322265,4790.0,4789.4,3.61]
[1756045404520,0.3108,4789.9,4789.4,3.61]
[1756045404847,6.97192534,4789.5,4789.4,3.61]
[1756045405050,7.28272534,4789.5,4789.4,3.61]
[1756045405210,7.72572534,4789.5,4789.4,3.61]
[1756045405628,7.72572534,4789.5,4789.3,0.001]
[1756045405845,7.28272534,4789.5,4789.3,0.001]
[1756045406034,0.443,4789.4,4789.3,0.001]
[1756045406351,0.7538,4789.4,4789.3,0.001]
[1756045407480,0.7538,4789.4,4788.5,3.609]
[1756045407481,6.97192534,4789.0,4788.5,3.609]
[1756045407630,7.28272534,4788.6,4788.3,3.61]
[1756045407965,0.443,4788.5,4788.3,3.61]
[1756045408276,7.28272534,4788.6,4788.3,0.001]
[1756045408277,0.7538,4788.4,4788.3,0.001]
[1756045409437,16.18137187,4788.4,4788.3,0.001]
[1756045409636,17.50843922,4788.4,4788.3,0.001]
[1756045410454,17.61323922,4788.4,4788.3,0.001]
[1756045410631,17.61323922,4788.4,4787.8,0.02]
[1756045410833,0.1048,4788.1,4787.8,0.02]
[1756045411077,0.3108,4787.9,4787.8,0.02]
[1756045411448,1.20056,4787.9,4787.8,0.02]
[1756045412966,1.828495,4787.9,4787.8,0.02]
[1756045413344,0.627935,4787.9,4787.8,0.02]
[1756045413546,0.1048,4788.1,4787.8,0.3123]
[1756045413746,7.99467867,4788.3,4787.8,3.9213]
[1756045413955,7.36680167,4788.3,4787.9,0.471]
[1756045414769,7.36680167,4788.3,4787.8,3.7338]
[1756045415085,7.36680167,4788.3,4788.2,0.2923]
[1756045415366,7.04,4788.3,4788.2,0.8681]
[1756045415729,7.04,4788.3,4788.2,0.3971]
[1756045416686,7.04,4788.3,4788.2,0.8681]
[1756045416992,0.32675026,4788.9,4788.2,1.47841]
[1756045417300,15.42757187,4789.5,4788.8,0.1048]
[1756045417596,15.75429382,4789.5,4788.9,3.609]
[1756045417794,1.64859768,4789.4,4788.9,3.609]
[1756045418459,0.3108,4789.0,4788.9,3.609]
[1756045419357,0.104,4789.3,4788.9,3.609]
[1756045419758,0.627683,4789.7,4789.2,0.2923]
[1756045419995,0.002,4790.3,4789.3,0.471]
[1756045420422,0.002,4790.3,4789.1,0.471]
[1756045420910,0.002,4790.3,4789.1,1.0396]
[1756045421410,0.002,4790.3,4789.2,0.471]
[1756045422322,0.002,4790.3,4790.2,0.2923]
[1756045423019,0.002,4790.3,4790.1,3.609]
[1756045423485,0.002,4790.3,4790.2,0.2923]
[1756045423686,0.3128,4790.3,4790.2,0.2923]
[1756045423887,1.57762012,4790.3,4790.2,0.2923]
[1756045424205,0.002,4790.3,4790.2,0.2923]
[1756045425325,0.002,4790.3,4790.2,0.7633]
[1756045429797,0.002,4790.3,4790.2,0.8673]
[1756045430622,0.3128,4790.3,4790.2,3.711]
[1756045430814,0.7558,4790.3,4790.2,3.607]
[1756045431432,0.7558,4790.3,4790.2,3.8993]
[1756045431433,0.002,4790.3,4790.2,3.8993]
[1756045431595,0.002,4790.3,4790.2,5.03523]
[1756045432427,0.3172,4790.3,4790.2,3.711]
[1756045433031,0.3172,4790.3,4790.2,0.104]
[1756045433325,0.3172,4790.3,4790.2,3.711]
[1756045434724,0.002,4790.3,4790.2,4.4388]
[1756045436537,0.002,4790.3,4790.2,3.711]
[1756045437437,0.002,4790.3,4790.2,4.0045]
[1756045438546,0.002,4790.3,4790.2,4.4388]
[1756045439112,0.002,4790.3,4790.2,4.4378]
[1756045440345,0.002,4790.3,4790.2,0.8318]
[1756045440523,0.002,4790.3,4790.2,4.0025]
[1756045441055,0.002,4790.3,4790.2,0.3975]
[1756045441344,0.2985,4790.3,4790.2,3.709]
[1756045441850,0.738,4790.3,4790.1,3.605]
[1756045442055,15.8530475,4790.2,4790.1,3.605]
[1756045442245,17.77650225,4790.2,4790.1,3.605]
[1756045442557,17.77650225,4790.2,4789.2,1.605]
[1756045442755,0.4381,4790.1,4789.4,0.104]
[1756045443051,0.2993,4789.5,4789.4,0.104]
[1756045443551,0.7403,4789.5,4789.4,0.104]
[1756045444062,0.2993,4789.5,4789.4,0.104]
[1756045444820,16.1538475,4789.5,4789.2,1.605]
[1756045445021,15.8168475,4789.5,4789.4,3.605]
[1756045445557,16.2578475,4789.5,4789.4,3.605]
[1756045446072,16.2578475,4789.5,4789.3,3.605]
[1756045446223,15.8168475,4789.5,4789.3,3.605]
[1756045446562,2.47287984,4789.4,4789.1,3.604]
[1756045446717,0.3152,4789.2,4789.0,3.604]
[1756045446919,0.441,4789.1,4789.0,3.604]
[1756045447123,0.861,4789.1,4789.0,3.604]
[1756045449656,0.1048,4789.1,4789.0,3.604]
[1756045450157,0.42,4789.1,4789.0,3.604]
[1756045451762,0.861,4789.1,4789.0,3.604]
[1756045452539,0.42,4789.1,4789.0,3.604]
[1756045453369,7.39586483,4789.1,4789.0,3.604]
[1756045454259,6.97586483,4789.3,4789.0,3.8975]
[1756045454465,6.97586483,4789.3,4789.1,0.4343]
[1756045454665,6.97586483,4789.3,4789.2,0.2935]
[1756045455066,7.29106483,4789.3,4789.0,3.7088]
[1756045455465,8.20754116,4789.3,4789.0,0.1048]
[1756045455671,0.5458,4789.2,4789.1,3.604]
[1756045455867,7.83686483,4789.2,4789.1,3.604]
[1756045456680,7.39586483,4789.2,4789.1,3.604]
[1756045457048,7.83686483,4789.2,4789.1,3.604]
[1756045457960,7.39586483,4789.2,4789.1,3.604]
[1756045458477,8.46684219,4789.2,4788.8,0.02]
[1756045458651,8.90784219,4789.2,4788.9,3.604]
[1756045459049,8.46684219,4789.2,4788.9,3.604]
[1756045459381,0.441,4789.1,4789.0,3.604]
[1756045459548,0.7562,4789.1,4789.0,3.604]
[1756045459749,0.7562,4789.1,4788.8,0.02]
[1756045459950,6.97586483,4789.2,4789.0,3.604]
[1756045460151,7.08066483,4789.2,4789.0,3.8975]
[1756045460563,7.08066483,4789.2,4789.0,0.2935]
[1756045460776,7.08066483,4789.2,4789.1,3.604]
[1756045461881,7.39586483,4789.2,4789.1,3.603]
[1756045462360,8.33109456,4789.2,4788.8,0.02]
[1756045462562,8.33109456,4789.2,4789.1,3.603]
[1756045463164,8.33109456,4789.2,4788.8,0.02]
[1756045463382,8.33109456,4789.2,4788.9,3.603]
[1756045463551,8.33109456,4789.2,4789.0,3.603]
[1756045464686,8.01589456,4789.2,4789.0,3.603]
[1756045466800,8.01789456,4789.2,4789.0,3.603]
[1756045468033,7.08266483,4789.2,4789.1,0.2876]
[1756045468182,6.97786483,4789.2,4789.1,0.2876]
[1756045468381,6.97786483,4789.2,4789.1,0.754]
[1756045468604,6.97786483,4789.2,4789.1,0.2876]
[1756045468877,7.428406,4789.2,4789.1,0.2876]
[1756045469427,7.4284055,4789.2,4789.1,0.2876]
[1756045470226,7.4284055,4789.2,4789.0,3.603]
[1756045470431,0.45054067,4789.1,4789.0,3.603]
[1756045471397,0.74124067,4789.1,4788.8,0.1248]
[1756045471620,0.89641462,4789.0,4788.9,3.602]
[1756045471792,1.18871462,4789.0,4788.9,3.602]
[1756045472282,1.1889282,4789.0,4788.9,3.602]
[1756045472485,1.75308845,4789.0,4787.8,1.627]
[1756045472684,6.97586483,4788.6,4788.2,3.602]
[1756045472931,0.3986,4788.4,4788.2,3.602]
[1756045473082,0.8499282,4788.4,4788.2,3.602]
[1756045473279,1.4777562,4788.4,4788.2,3.602]
[1756045474506,1.1839562,4788.4,4788.2,3.602]
[1756045475346,1.4999562,4788.4,4788.2,3.602]
[1756045475909,1.9467562,4788.4,4788.2,3.602]
[1756045476096,2.8390183,4788.4,4788.2,3.602]
[1756045476697,2.8390183,4788.4,4787.8,1.7318]
[1756045477029,6.97586483,4787.9,4787.8,5.228]
[1756045477191,8.18999303,4787.9,4787.8,5.228]
[1756045477389,8.18985665,4787.9,4787.8,3.622]
[1756045477586,7.74305665,4787.9,4787.8,0.021]
[1756045477825,8.18985665,4787.9,4787.8,0.021]
[1756045478012,9.01932232,4787.9,4787.8,0.021]
[1756045478726,11.10792066,4787.9,4787.8,0.021]
[1756045478926,6.97586483,4787.4,4787.3,0.001]
[1756045479126,7.74293199,4787.4,4787.3,0.001]
[1756045479337,7.08066483,4787.4,4787.3,0.2886]
[1756045479529,7.70862183,4787.4,4787.3,0.2886]
[1756045480523,8.15921605,4787.4,4787.3,0.2886]
[1756045481302,7.42645905,4787.4,4787.3,0.2886]
[1756045481503,6.97586483,4787.4,4787.3,0.2886]
[1756045482943,7.29186483,4787.4,4787.3,0.001]
[1756045483107,8.13900591,4787.4,4787.3,0.001]
[1756045483311,8.42900591,4787.4,4787.3,0.001]
[1756045483810,8.13900591,4787.4,4787.3,0.001]
[1756045484242,7.82300591,4787.4,4787.3,0.001]
[1756045484537,6.97586483,4787.4,4787.3,0.2886]
[1756045485520,7.60385983,4787.4,4787.3,0.2886]
[1756045485932,7.60385983,4787.4,4787.3,0.001]
[1756045486447,8.20985983,4787.4,4787.3,0.001]
[1756045487008,8.65982145,4787.4,4787.3,0.001]
[1756045487212,13.36652609,4787.4,4787.3,0.001]
[1756045488436,10.48736932,4787.4,4787.3,0.2886]
[1756045488641,1.95483823,4787.4,4787.3,4.355]
[1756045488931,1.627995,4787.4,4787.3,5.961]
[1756045489244,1.0,4787.4,4787.3,5.961]
[1756045489612,1.0,4787.4,4787.3,5.4946]
[1756045489820,1.0,4787.4,4787.3,5.961]
[1756045490024,1.0,4787.4,4787.3,3.07248]
[1756045490346,1.0,4787.4,4787.3,6.0658]
[1756045491426,1.0,4787.4,4787.3,5.5994]
[1756045491648,1.0,4787.4,4787.3,6.0658]
[1756045492045,1.0,4787.4,4787.3,5.3118]
[1756045492046,7.97586483,4787.4,4787.3,5.3118]
[1756045492215,8.28226483,4787.4,4787.3,5.207]
[1756045492562,8.28226483,4787.4,4787.3,1.607]
[1756045492711,9.65446431,4787.4,4787.3,0.001]
[1756045492915,9.75926431,4787.4,4787.3,0.001]
[1756045493117,10.38726631,4787.4,4787.3,0.001]
[1756045494030,10.8371981,4787.4,4787.3,0.001]
[1756045494726,12.92601457,4787.4,4787.3,0.001]
[1756045494966,10.8371981,4787.4,4787.3,0.001]
[1756045495422,19.29457203,4787.4,4787.3,0.001]
[1756045496063,28.4233885,4787.4,4787.3,0.001]
[1756045496464,29.66142303,4787.4,4787.3,0.001]
[1756045496632,31.7502395,4787.4,4787.3,0.001]
[1756045497364,29.66142303,4787.4,4787.3,0.001]
[1756045497924,31.7502395,4787.4,4787.3,0.001]
[1756045498850,32.78872303,4787.4,4787.3,0.001]
[1756045499067,29.19072303,4787.4,4787.3,0.001]
[1756045499233,29.66142303,4787.4,4787.3,0.001]
[1756045499424,33.25942303,4787.4,4787.3,0.001]
[1756045499624,29.66142303,4787.4,4787.3,0.001]
[1756045499866,31.7502395,4787.4,4787.3,0.001]
[1756045500071,29.66142303,4787.4,4787.3,0.001]
[1756045500566,9.11793379,4787.4,4787.3,0.7223]
[1756045500736,8.48993179,4787.4,4787.3,0.7223]
[1756045501061,1.44993179,4787.4,4787.3,0.7223]
[1756045501265,1.3064,4787.4,4787.3,0.001]
[1756045501435,1.75633179,4787.4,4787.3,0.001]
[1756045501834,2.46872249,4787.4,4787.3,0.001]
[1756045502036,1.55473179,4787.4,4787.3,0.2944]
[1756045502356,1.44993179,4787.4,4787.3,0.7223]
[1756045502561,1.0,4787.4,4787.3,0.8271]